fUST/lending_fUST_20250930
["ID","MTS","AMOUNT","RATE_DAILY","PERIOD"]
[388450744,1759174247365,-151.0,0.00023305,7]
[388450746,1759174247374,-151.0,0.00023305,7]
[388450748,1759174247383,-151.0,0.00023305,7]
[388450750,1759174247392,-151.0,0.00023305,7]
[388450752,1759174247401,-151.0,0.00023305,7]
[388450753,1759174247410,-151.0,0.00023305,7]
[388450755,1759174247420,-151.0,0.00023305,7]
[388450757,1759174247428,-151.0,0.00023305,7]
[388450759,1759174247438,-151.0,0.00023305,7]
[388450761,1759174247447,-151.0,0.00023305,7]
[388450763,1759174247457,-151.0,0.00023305,7]
[388450765,1759174247466,-151.0,0.00023305,7]
[388450767,1759174247475,-151.0,0.00023305,7]
[388450769,1759174247484,-151.0,0.00023305,7]
[388450771,1759174247493,-151.0,0.00023305,7]
[388450773,1759174247503,-151.0,0.00023305,7]
[388450775,1759174247512,-151.0,0.00023305,7]
[388450777,1759174247522,-249.725353,0.00023305,7]
[388450779,1759174247531,-249.725353,0.00023305,7]
[388450781,1759174247541,-249.725353,0.00023305,7]
[388450783,1759174247551,-249.725353,0.00023305,7]
[388450785,1759174247560,-151.0,0.00023305,7]
[388450787,1759174247569,-151.0,0.00023305,7]
[388450789,1759174247578,-151.0,0.00023305,7]
[388450791,1759174247587,-151.0,0.00023305,7]
[388450792,1759174247596,-151.0,0.00023305,7]
[388450794,1759174247605,-151.0,0.00023305,7]
[388450796,1759174247614,-800.0,0.00023314,2]
[388450798,1759174247623,-687.76291514,0.00023317,2]
[388450800,1759174247631,-168.0,0.00023322,2]
[388450801,1759174247640,-800.0,0.00023325,2]
[388450802,1759174247649,-800.0,0.00023329,2]
[388450803,1759174247658,-308.4921942,0.00023332,2]
[388450804,1759174247666,-800.0,0.00023337,2]
[388450805,1759174247675,-800.0,0.00023355,2]
[388450807,1759174247684,-800.0,0.00023366,2]
[388450809,1759174247693,-800.0,0.00023382,2]
[388450810,1759174247702,-800.0,0.00023392,2]
[388450812,1759174247711,-479.94765416,0.00023392,2]
[388450814,1759174247721,-1000.0,0.00023396,2]
[388450816,1759174247730,-800.0,0.00023408,2]
[388450818,1759174247739,-800.0,0.00023409,2]
[388450820,1759174247748,-4916.81632851,0.00023412,2]
[388450822,1759174247756,-800.0,0.00023424,2]
[388450824,1759174247765,-150.0,0.00023424,2]
[388450826,1759174247774,-24548.39820921,0.00023428,2]
[388450828,1759174247783,-142274.24457072,0.00023433,2]
[388450830,1759174247792,-151.0,0.00023433,7]
[388450832,1759174247801,-151.0,0.00023433,7]
[388450834,1759174247810,-151.0,0.00023433,7]
[388450836,1759174247819,-151.0,0.00023433,7]
[388450838,1759174247827,-151.0,0.00023433,7]
[388450840,1759174247836,-151.0,0.00023433,7]
[388450842,1759174247845,-249.725353,0.00023433,7]
[388450844,1759174247854,-249.725353,0.00023433,7]
[388450846,1759174247862,-249.725353,0.00023433,7]
[388450848,1759174247871,-249.725353,0.00023433,7]
[388450850,1759174247879,-151.0,0.00023433,7]
[388450852,1759174247888,-151.0,0.00023433,7]
[388450854,1759174247897,-151.0,0.00023433,7]
[388450855,1759174247906,-151.0,0.00023433,7]
[388450857,1759174247914,-154.014455,0.00023433,7]
[388450859,1759174247923,-151.0,0.00023433,7]
[388450861,1759174247932,-2264.347528,0.00023433,7]
[388450863,1759174247941,-2264.347528,0.00023433,7]
[388450865,1759174247950,-2264.347528,0.00023433,7]
[388450867,1759174247959,-2264.347528,0.00023433,7]
[388450869,1759174247968,-151.0,0.00023433,7]
[388450871,1759174247977,-151.0,0.00023433,7]
[388450873,1759174247986,-151.0,0.00023433,7]
[388450875,1759174247995,-151.0,0.00023433,7]
[388450877,1759174248003,-151.0,0.00023433,7]
[388450879,1759174248013,-151.0,0.00023433,7]
[388450881,1759174248022,-151.0,0.00023433,7]
[388450883,1759174248031,-151.0,0.00023433,7]
[388450885,1759174248041,-151.0,0.00023433,7]
[388450886,1759174248049,-369.361182,0.00023433,7]
[388450888,1759174248058,-369.361182,0.00023433,7]
[388450890,1759174248067,-369.361182,0.00023433,7]
[388450892,1759174248077,-369.361182,0.00023433,7]
[388450894,1759174248088,-772.759636,0.00023433,7]
[388450896,1759174248099,-772.759636,0.00023433,7]
[388450898,1759174248109,-151.0,0.00023433,7]
[388450900,1759174248119,-772.759636,0.00023433,7]
[388450902,1759174248128,-772.759636,0.00023433,7]
[388450904,1759174248137,-164.207753,0.00023433,7]
[388450906,1759174248147,-151.0,0.00023433,7]
[388450908,1759174248155,-156.050985,0.00023433,7]
[388450910,1759174248165,-500.0,0.00023445,2]
[388450912,1759174248174,-480.0,0.00023445,2]
[388450914,1759174248183,-538.85,0.00023445,2]
[388450916,1759174248192,-804.71,0.00023445,2]
[388450918,1759174248201,-1800.15,0.00023445,2]
[388450919,1759174248214,-780.59,0.00023445,2]
[388450921,1759174248222,-3605.49,0.00023445,2]
[388450923,1759174248232,-542.0,0.00023445,2]
[388450925,1759174248241,-480.0,0.00023445,2]
[388450927,1759174248250,-480.0,0.00023445,2]
[388450929,1759174248262,-480.0,0.00023445,2]
[388450931,1759174248271,-480.0,0.00023445,2]
[388450933,1759174248282,-485.31,0.00023445,2]
[388450935,1759174248293,-151.0,0.00023466,2]
[388450937,1759174248301,-500.0,0.00023473,2]
[388450939,1759174248312,-500.0,0.00023473,2]
[388450941,1759174248321,-500.0,0.00023473,2]
[388450943,1759174248330,-500.0,0.00023473,2]
[388450945,1759174248340,-500.0,0.00023473,2]
[388450947,1759174248349,-500.0,0.00023473,2]
[388450949,1759174248358,-500.0,0.00023473,2]
[388450951,1759174248367,-504.06488842,0.00023473,2]
[388450953,1759174248377,-412.82600998,0.00023473,2]
[388450955,1759174248388,-163.72715987,0.00023473,2]
[388450974,1759174248567,-500.0,0.00023473,2]
[388450976,1759174248576,-500.0,0.00023473,2]
[388450977,1759174248586,-500.0,0.00023473,2]
[388450979,1759174248595,-500.0,0.00023473,2]
[388450981,1759174248604,-500.0,0.00023473,2]
[388450983,1759174248614,-535.9630655,0.00023473,2]
[388450985,1759174248623,-500.0,0.00023473,2]
[388450987,1759174248632,-480.0,0.00023475,2]
[388450989,1759174248641,-480.0,0.00023475,2]
[388450991,1759174248650,-480.0,0.00023475,2]
[388450993,1759174248659,-3260.26,0.00023475,2]
[388450995,1759174248668,-480.0,0.00023475,2]
[388450997,1759174248677,-480.0,0.00023475,2]
[388450999,1759174248686,-1248.7,0.00023475,2]
[388451001,1759174248696,-480.0,0.00023475,2]
[388451003,1759174248705,-881.53,0.00023475,2]
[388451005,1759174248714,-1699.71,0.00023475,2]
[388451007,1759174248723,-480.0,0.00023476,2]
[388451009,1759174248733,-480.0,0.00023476,2]
[388451011,1759174248742,-480.0,0.00023476,2]
[388451013,1759174248751,-480.0,0.00023476,2]
[388451015,1759174248760,-1260.14,0.00023476,2]
[388451017,1759174248769,-725.62,0.00023476,2]
[388451019,1759174248778,-480.0,0.00023476,2]
[388451021,1759174248787,-480.0,0.00023476,2]
[388451023,1759174248798,-524.36,0.00023476,2]
[388451025,1759174248807,-823.81,0.00023476,2]
[388451027,1759174248817,-1025.39,0.00023476,2]
[388451029,1759174248828,-1196.82,0.00023476,2]
[388451031,1759174248838,-480.0,0.00023476,2]
[388451033,1759174248848,-554.96,0.00023476,2]
[388451035,1759174248859,-1609.39,0.00023476,2]
[388451037,1759174248868,-480.0,0.00023476,2]
[388451039,1759174248878,-1717.09,0.00023476,2]
[388451041,1759174248888,-480.0,0.00023476,2]
[388451043,1759174248897,-480.0,0.00023476,2]
[388451045,1759174248906,-658.07,0.00023476,2]
[388451047,1759174248916,-480.0,0.00023476,2]
[388451049,1759174248926,-480.0,0.00023476,2]
[388451051,1759174248935,-1256.05,0.00023476,2]
[388451053,1759174248944,-483.34,0.00023476,2]
[388451055,1759174248953,-1158.71,0.00023476,2]
[388451057,1759174248963,-1816.01,0.00023476,2]
[388451059,1759174248972,-4455.28,0.00023476,2]
[388451061,1759174248981,-2040.14,0.00023476,2]
[388451063,1759174248991,-480.0,0.00023476,2]
[388451065,1759174249000,-480.0,0.00023476,2]
[388451067,1759174249009,-2979.18,0.00023476,2]
[388451068,1759174249018,-547.18,0.00023476,2]
[388451070,1759174249027,-151.0,0.00023477,2]
[388451072,1759174249036,-500.0,0.00023477,2]
[388451074,1759174249047,-500.0,0.00023477,2]
[388451076,1759174249056,-151.0,0.00023477,2]
[388451078,1759174249066,-500.0,0.00023477,2]
[388451080,1759174249075,-151.0,0.00023477,2]
[388451082,1759174249086,-500.0,0.00023477,2]
[388451084,1759174249095,-480.0,0.00023477,2]
[388451086,1759174249105,-480.0,0.00023477,2]
[388451088,1759174249114,-510.2,0.00023477,2]
[388451090,1759174249126,-480.0,0.00023477,2]
[388451093,1759174249136,-485.31297155,0.00023478,2]
[388451094,1759174249147,-480.0,0.00023478,2]
[388451097,1759174249157,-1104.37,0.00023478,2]
[388451099,1759174249167,-480.0,0.00023478,2]
[388451100,1759174249177,-480.0,0.00023478,2]
[388451102,1759174249187,-483.9,0.00023478,2]
[388451103,1759174249197,-480.0,0.00023478,2]
[388451105,1759174249211,-562.22,0.00023478,2]
[388451107,1759174249231,-593.73,0.00023478,2]
[388451109,1759174249253,-480.0,0.00023478,2]
[388451111,1759174249274,-929.79,0.00023478,2]
[388451113,1759174249292,-480.0,0.00023478,2]
[388451115,1759174249301,-925.49,0.00023478,2]
[388451117,1759174249312,-480.0,0.00023478,2]
[388451119,1759174249322,-1267.7,0.00023478,2]
[388451121,1759174249331,-893.97,0.00023478,2]
[388451123,1759174249341,-480.0,0.00023478,2]
[388451125,1759174249350,-480.0,0.00023478,2]
[388451127,1759174249360,-676.12,0.00023478,2]
[388451129,1759174249369,-480.0,0.00023478,2]
[388451131,1759174249377,-1157.89,0.00023478,2]
[388451133,1759174249386,-530.55,0.00023478,2]
[388451135,1759174249395,-488.59,0.00023478,2]
[388451136,1759174249404,-491.69,0.00023478,2]
[388451138,1759174249412,-480.0,0.00023478,2]
[388451140,1759174249424,-631.6,0.00023478,2]
[388451142,1759174249434,-480.0,0.00023478,2]
[388451144,1759174249443,-480.0,0.00023478,2]
[388451146,1759174249452,-501.43,0.00023478,2]
[388451149,1759174249462,-531.49,0.00023478,2]
[388451152,1759174249484,-848.37,0.00023478,2]
[388451154,1759174249494,-843.74,0.00023478,2]
[388451156,1759174249503,-480.0,0.00023478,2]
[388451158,1759174249513,-480.0,0.00023478,2]
[388451160,1759174249523,-480.0,0.00023478,2]
[388451162,1759174249532,-622.15,0.00023478,2]
[388451163,1759174249542,-480.0,0.00023478,2]
[388451164,1759174249552,-698.35,0.00023478,2]
[388451166,1759174249562,-480.0,0.00023478,2]
[388451168,1759174249571,-480.0,0.00023478,2]
[388451170,1759174249581,-570.38,0.00023478,2]
[388451172,1759174249591,-480.0,0.00023478,2]
[388451173,1759174249602,-694.96,0.00023478,2]
[388451174,1759174249612,-817.93,0.00023478,2]
[388451175,1759174249623,-1778.75,0.00023478,2]
[388451176,1759174249633,-978.31,0.00023478,2]
[388451177,1759174249644,-480.0,0.00023478,2]
[388451178,1759174249654,-1463.09,0.00023478,2]
[388451179,1759174249665,-480.0,0.00023478,2]
[388451180,1759174249675,-890.78,0.00023478,2]
[388451181,1759174249685,-480.0,0.00023478,2]
[388451182,1759174249696,-480.0,0.00023478,2]
[388451183,1759174249707,-538.72,0.00023478,2]
[388451184,1759174249717,-1101.45,0.00023478,2]
[388451185,1759174249727,-687.95,0.00023478,2]
[388451186,1759174249737,-1023.04,0.00023478,2]
[388451187,1759174249747,-480.0,0.00023478,2]
[388451188,1759174249758,-4281.31,0.00023478,2]
[388451189,1759174249767,-515.83,0.00023478,2]
[388451190,1759174249778,-654.96,0.00023478,2]
[388451191,1759174249788,-1901.85,0.00023478,2]
[388451192,1759174249798,-1045.19,0.00023478,2]
[388451193,1759174249808,-695.25,0.00023478,2]
[388451194,1759174249818,-480.0,0.00023478,2]
[388451195,1759174249828,-1028.52,0.00023478,2]
[388451196,1759174249839,-154.25485045,0.00023478,2]
[388451197,1759174249848,-701.68,0.00023478,2]
[388451198,1759174249859,-516.28,0.00023478,2]
[388451199,1759174249869,-480.0,0.00023478,2]
[388451200,1759174249879,-1814.89,0.00023478,2]
[388451201,1759174249889,-828.09357454,0.00023478,2]
[388451202,1759174249916,-3402.96642546,0.00023478,2]
[388451203,1759174249926,-1539.91,0.00023478,2]
[388451204,1759174249936,-832.4,0.00023478,2]
[388451205,1759174249946,-549.87,0.00023478,2]
[388451206,1759174249956,-599.28,0.00023478,2]
[388451207,1759174249966,-576.7,0.00023478,2]
[388451208,1759174249976,-2243.63,0.00023478,2]
[388451209,1759174249986,-2010.74,0.00023478,2]
[388451210,1759174249996,-872.04,0.00023478,2]
[388451211,1759174250005,-620.04,0.00023478,2]
[388451212,1759174250015,-531.35,0.00023478,2]
[388451213,1759174250025,-699.45,0.00023478,2]
[388451214,1759174250035,-4932.68,0.00023478,2]
[388451215,1759174250045,-500.0,0.00023478,2]
[388451216,1759174250055,-480.0,0.00023478,2]
[388451217,1759174250065,-1243.97,0.00023478,2]
[388451218,1759174250079,-1686.63,0.00023478,2]
[388451219,1759174250090,-480.0,0.00023478,2]
[388451220,1759174250101,-729.64,0.00023478,2]
[388451221,1759174250111,-532.76,0.00023478,2]
[388451222,1759174250121,-480.0,0.00023478,2]
[388451223,1759174250131,-500.0,0.00023479,2]
[388451224,1759174250141,-500.0,0.00023479,2]
[388451225,1759174250152,-500.0,0.00023479,2]
[388451226,1759174250163,-256.58863321,0.00023479,2]
[388451227,1759174250172,-151.0,0.00023479,2]
[388451228,1759174250183,-500.0,0.00023479,2]
[388451229,1759174250194,-1716.0,0.00023479,2]
[388451230,1759174250204,-151.0,0.00023479,2]
[388451231,1759174250218,-500.0,0.00023479,2]
[388451232,1759174250228,-500.0,0.00023479,2]
[388451233,1759174250238,-152.1492464,0.00023479,2]
[388451234,1759174250248,-580.14159216,0.00023479,2]
[388451235,1759174250258,-560.35126311,0.00023479,2]
[388451236,1759174250268,-500.0,0.00023479,2]
[388451237,1759174250277,-507.9,0.00023479,2]
[388451238,1759174250291,-480.0,0.00023479,2]
[388451239,1759174250301,-480.0,0.00023479,2]
[388451240,1759174250311,-480.0,0.00023479,2]
[388451241,1759174250322,-480.0,0.00023479,2]
[388451242,1759174250332,-480.0,0.00023479,2]
[388451243,1759174250343,-480.0,0.00023479,2]
[388451244,1759174250352,-491.15,0.00023479,2]
[388451245,1759174250362,-480.0,0.00023479,2]
[388451246,1759174250372,-480.0,0.00023479,2]
[388451247,1759174250382,-484.4,0.00023479,2]
[388451248,1759174250392,-480.0,0.00023479,2]
[388451249,1759174250402,-480.0,0.00023479,2]
[388451250,1759174250411,-480.0,0.00023479,2]
[388451251,1759174250422,-331.54262343,0.00023479,2]
[388451252,1759174250434,-162.34737657,0.00023479,2]
[388451253,1759174250444,-518.75,0.00023479,2]
[388451254,1759174250454,-480.0,0.00023479,2]
[388451255,1759174250464,-402.65825812,0.00023479,2]
[388451256,1759174250473,-480.0,0.00023479,2]
[388451257,1759174250484,-480.0,0.00023479,2]
[388451258,1759174250494,-480.0,0.00023479,2]
[388451259,1759174250504,-480.0,0.00023479,2]
[388451260,1759174250514,-518.65,0.00023479,2]
[388451261,1759174250524,-492.41,0.00023479,2]
[388451262,1759174250534,-480.0,0.00023479,2]
[388451263,1759174250544,-480.0,0.00023479,2]
[388451264,1759174250554,-480.0,0.00023479,2]
[388451265,1759174250564,-480.0,0.00023479,2]
[388451266,1759174250574,-480.0,0.00023479,2]
[388451267,1759174250584,-26.26376005,0.00023479,2]
[388451268,1759174250820,-435.79460205,0.00023479,2]
[388451269,1759174250833,-17.9416379,0.00023479,2]
[388451270,1759174250844,-607.32,0.00023479,2]
[388451271,1759174250855,-480.0,0.00023479,2]
[388451272,1759174250865,-480.0,0.00023479,2]
[388451273,1759174250876,-480.0,0.00023479,2]
[388451274,1759174250886,-480.0,0.00023479,2]
[388451275,1759174250895,-480.0,0.00023479,2]
[388451276,1759174250905,-480.0,0.00023479,2]
[388451277,1759174250915,-508.01063634,0.00023479,2]
[388451278,1759174250925,-480.0,0.00023479,2]
[388451279,1759174250935,-480.0,0.00023479,2]
[388451280,1759174250945,-480.0,0.00023479,2]
[388451281,1759174250955,-480.0,0.00023479,2]
[388451282,1759174250964,-480.0,0.00023479,2]
[388451283,1759174251057,-480.0,0.00023479,2]
[388451284,1759174251067,-480.0,0.00023479,2]
[388451285,1759174251076,-480.0,0.00023479,2]
[388451286,1759174251086,-560.46,0.00023479,2]
[388451287,1759174251095,-480.0,0.00023479,2]
[388451288,1759174251104,-662.68,0.00023479,2]
[388451289,1759174251114,-689.01,0.00023479,2]
[388451290,1759174251123,-480.0,0.00023479,2]
[388451291,1759174251133,-512.46,0.00023479,2]
[388451292,1759174251142,-480.0,0.00023479,2]
[388451293,1759174251151,-480.0,0.00023479,2]
[388451294,1759174251161,-858.89,0.00023479,2]
[388451295,1759174251172,-480.0,0.00023479,2]
[388451296,1759174251182,-493.02,0.00023479,2]
[388451297,1759174251191,-627.76,0.00023479,2]
[388451298,1759174251201,-290.89239709,0.00023479,2]
[388451299,1759174251214,-151.0,0.00023479,7]
[388451300,1759174251223,-480.0,0.00023479,2]
[388451301,1759174251233,-480.0,0.00023479,2]
[388451302,1759174251243,-249.303497,0.00023479,7]
[388451303,1759174251252,-249.303497,0.00023479,7]
[388451304,1759174251262,-249.303497,0.00023479,7]
[388451305,1759174251271,-249.303497,0.00023479,7]
[388451306,1759174251280,-151.0,0.00023479,7]
[388451307,1759174251290,-151.0,0.00023479,7]
[388451308,1759174251300,-480.0,0.00023479,2]
[388451309,1759174251309,-567.56690896,0.00023479,2]
[388451310,1759174251319,-480.0,0.00023479,2]
[388451311,1759174251328,-480.0,0.00023479,2]
[388451312,1759174251338,-480.0,0.00023479,2]
[388451313,1759174251348,-480.0,0.00023479,2]
[388451314,1759174251358,-151.0,0.00023479,7]
[388451315,1759174251368,-151.0,0.00023479,7]
[388451316,1759174251377,-151.0,0.00023479,7]
[388451317,1759174251386,-480.0,0.00023479,2]
[388451318,1759174251396,-480.0,0.00023479,2]
[388451319,1759174251409,-480.0,0.00023479,2]
[388451320,1759174251418,-151.0,0.00023479,7]
[388451321,1759174251429,-151.0,0.00023479,7]
[388451322,1759174251440,-151.0,0.00023479,7]
[388451323,1759174251449,-611.07,0.00023479,2]
[388451324,1759174251458,-151.0,0.00023479,7]
[388451325,1759174251467,-151.0,0.00023479,7]
[388451326,1759174251477,-224.313998,0.00023479,7]
[388451327,1759174251486,-480.0,0.00023479,2]
[388451328,1759174251495,-151.0,0.00023479,7]
[388451329,1759174251505,-153.200272,0.00023479,7]
[388451330,1759174251514,-151.0,0.00023479,7]
[388451331,1759174251524,-151.0,0.00023479,7]
[388451332,1759174251534,-151.0,0.00023479,7]
[388451333,1759174251543,-151.0,0.00023479,7]
[388451334,1759174251554,-1094.42,0.00023479,2]
[388451335,1759174251564,-151.0,0.00023479,7]
[388451336,1759174251574,-151.0,0.00023479,7]
[388451337,1759174251583,-480.0,0.00023479,2]
[388451338,1759174251592,-151.0,0.00023479,7]
[388451339,1759174251602,-151.0,0.00023479,7]
[388451340,1759174251611,-625.57673,0.00023479,7]
[388451341,1759174251620,-151.0,0.00023479,7]
[388451342,1759174251630,-480.0,0.00023479,2]
[388451343,1759174251640,-625.57673,0.00023479,7]
[388451344,1759174251650,-625.57673,0.00023479,7]
[388451345,1759174251660,-480.0,0.00023479,2]
[388451346,1759174251670,-625.57673,0.00023479,7]
[388451347,1759174251679,-151.0,0.00023479,7]
[388451348,1759174251689,-151.0,0.00023479,7]
[388451349,1759174251698,-151.0,0.00023479,7]
[388451350,1759174251707,-151.0,0.00023479,7]
[388451351,1759174251716,-500.0,0.00023479,2]
[388451352,1759174251725,-480.0,0.00023479,2]
[388451353,1759174251734,-151.0,0.00023479,7]
[388451354,1759174251744,-480.0,0.00023479,2]
[388451355,1759174251753,-151.0,0.00023479,7]
[388451356,1759174251762,-480.0,0.00023479,2]
[388451357,1759174251772,-480.0,0.00023479,2]
[388451358,1759174251781,-151.0,0.00023479,7]
[388451359,1759174251790,-687.76291514,0.00023479,2]
[388451360,1759174251799,-401.230282,0.00023479,7]
[388451361,1759174251808,-401.230282,0.00023479,7]
[388451362,1759174251817,-401.230282,0.00023479,7]
[388451363,1759174251826,-401.230282,0.00023479,7]
[388451364,1759174251835,-151.0,0.00023479,7]
[388451365,1759174251844,-151.0,0.00023479,7]
[388451366,1759174251854,-151.0,0.00023479,7]
[388451367,1759174251863,-151.0,0.00023479,7]
[388451368,1759174251872,-151.0,0.00023479,7]
[388451369,1759174251881,-151.0,0.00023479,7]
[388451370,1759174251891,-480.0,0.00023479,2]
[388451371,1759174251900,-152.127292,0.00023479,7]
[388451372,1759174251910,-151.0,0.00023479,7]
[388451373,1759174251919,-153.313215,0.00023479,7]
[388451374,1759174251928,-480.0,0.00023479,2]
[388451375,1759174251938,-562.99,0.00023479,2]
[388451376,1759174251947,-480.0,0.00023479,2]
[388451377,1759174251957,-480.0,0.00023479,2]
[388451378,1759174251966,-151.0,0.00023479,7]
[388451379,1759174251975,-151.0,0.00023479,7]
[388451380,1759174251984,-151.0,0.00023479,7]
[388451381,1759174251993,-151.0,0.00023479,7]
[388451382,1759174252002,-169.358262,0.00023479,7]
[388451383,1759174252011,-246.382447,0.00023479,7]
[388451384,1759174252021,-169.358262,0.00023479,7]
[388451385,1759174252030,-493.28,0.00023479,2]
[388451386,1759174252039,-169.358262,0.00023479,7]
[388451387,1759174252049,-480.0,0.00023479,2]
[388451388,1759174252058,-169.358262,0.00023479,7]
[388451389,1759174252068,-151.0,0.00023479,7]
[388451390,1759174252077,-480.0,0.00023479,2]
[388451391,1759174252087,-480.0,0.00023479,2]
[388451392,1759174252097,-151.0,0.00023479,7]
[388451393,1759174252107,-151.0,0.00023479,7]
[388451394,1759174252116,-151.0,0.00023479,7]
[388451395,1759174252125,-480.0,0.00023479,2]
[388451396,1759174252135,-358.349785,0.00023479,7]
[388451397,1759174252145,-358.349785,0.00023479,7]
[388451398,1759174252155,-358.349785,0.00023479,7]
[388451399,1759174252165,-151.0,0.00023479,7]
[388451400,1759174252174,-358.349785,0.00023479,7]
[388451401,1759174252184,-151.0,0.00023479,7]
[388451402,1759174252193,-151.0,0.00023479,7]
[388451403,1759174252203,-480.0,0.00023479,2]
[388451404,1759174252219,-478.65452454,0.00023479,2]
[388451405,1759174252238,-151.0,0.00023479,7]
[388451406,1759174252248,-1243.02,0.00023479,2]
[388451407,1759174252259,-490.34,0.00023479,2]
[388451408,1759174252268,-151.0,0.00023479,7]
[388451409,1759174252278,-151.0,0.00023479,7]
[388451410,1759174252287,-480.0,0.00023479,2]
[388451411,1759174252297,-480.0,0.00023479,2]
[388451412,1759174252307,-151.0,0.00023479,7]
[388451413,1759174252316,-151.0,0.00023479,7]
[388451414,1759174252325,-151.0,0.00023479,7]
[388451415,1759174252334,-151.0,0.00023479,7]
[388451416,1759174252344,-190.071784,0.00023479,7]
[388451417,1759174252353,-151.0,0.00023479,7]
[388451418,1759174252363,-151.0,0.00023479,7]
[388451419,1759174252372,-480.0,0.00023479,2]
[388451420,1759174252381,-151.0,0.00023479,7]
[388451421,1759174252391,-986.72,0.00023479,2]
[388451422,1759174252401,-151.0,0.00023479,7]
[388451423,1759174252411,-203.536083,0.00023479,7]
[388451424,1759174252420,-151.0,0.00023479,7]
[388451425,1759174252429,-151.0,0.00023479,7]
[388451426,1759174252439,-113.86868676,0.00023479,7]
[388451427,1759174252661,-37.13131324,0.00023479,7]
[388451428,1759174252672,-249.725353,0.00023479,7]
[388451429,1759174252682,-815.27,0.00023479,2]
[388451430,1759174252691,-249.725353,0.00023479,7]
[388451431,1759174252701,-249.725353,0.00023479,7]
[388451432,1759174252710,-249.725353,0.00023479,7]
[388451433,1759174252720,-179.72360089,0.00023479,2]
[388451434,1759174252733,-300.27639911,0.00023479,2]
[388451435,1759174252742,-151.0,0.00023479,7]
[388451436,1759174252751,-151.0,0.00023479,7]
[388451437,1759174252761,-151.0,0.00023479,7]
[388451438,1759174252770,-480.0,0.00023479,2]
[388451439,1759174252779,-480.0,0.00023479,2]
[388451440,1759174252789,-480.0,0.00023479,2]
[388451441,1759174252799,-480.0,0.00023479,2]
[388451442,1759174252809,-151.0,0.00023479,7]
[388451443,1759174252819,-2264.347528,0.00023479,7]
[388451444,1759174252829,-2264.347528,0.00023479,7]
[388451445,1759174252838,-2264.347528,0.00023479,7]
[388451446,1759174252848,-480.0,0.00023479,2]
[388451447,1759174252858,-2264.347528,0.00023479,7]
[388451448,1759174252867,-151.0,0.00023479,7]
[388451449,1759174252876,-151.0,0.00023479,7]
[388451450,1759174252886,-151.0,0.00023479,7]
[388451451,1759174252895,-151.0,0.00023479,7]
[388451452,1759174252905,-480.0,0.00023479,2]
[388451453,1759174252914,-151.0,0.00023479,7]
[388451454,1759174252923,-480.0,0.00023479,2]
[388451455,1759174252933,-151.0,0.00023479,7]
[388451456,1759174252943,-151.0,0.00023479,7]
[388451457,1759174252952,-480.0,0.00023479,2]
[388451458,1759174252962,-151.0,0.00023479,7]